fUSD/lending_fUSD_20250716
["ID","MTS","AMOUNT","RATE_DAILY","PERIOD"]
[372424552,1752640240080,-151.864608,0.00021917,2]
[372424555,1752640240090,-460.0,0.00021917,2]
[372424557,1752640240100,-150.923723,0.00021917,2]
[372424559,1752640240110,-460.0,0.00021917,2]
[372424561,1752640240119,-460.0,0.00021917,2]
[372424563,1752640240130,-460.0,0.00021917,2]
[372424565,1752640240140,-460.0,0.00021917,2]
[372424567,1752640240149,-181.540647,0.00021917,2]
[372424569,1752640240159,-460.0,0.00021917,2]
[372424571,1752640240168,-460.0,0.00021917,2]
[372424573,1752640240178,-460.0,0.00021917,2]
[372424575,1752640240187,-402.37133268,0.00021917,2]
[372424577,1752640240196,-460.0,0.00021917,2]
[372424579,1752640240205,-540.0,0.00021917,2]
[372424581,1752640240214,-460.0,0.00021917,2]
[372424583,1752640240224,-460.0,0.00021917,2]
[372424585,1752640240233,-460.0,0.00021917,2]
[372424587,1752640240243,-460.0,0.00021917,2]
[372424589,1752640240252,-460.4376525,0.00021917,2]
[372424591,1752640240262,-837.4,0.00021917,2]
[372424593,1752640240271,-167.050916,0.00021917,2]
[372424595,1752640240281,-460.0,0.00021917,2]
[372424597,1752640240291,-460.0,0.00021917,2]
[372424599,1752640240301,-460.0,0.00021917,2]
[372424601,1752640240311,-970.38,0.00021917,2]
[372424603,1752640240321,-151.950839,0.00021917,2]
[372424605,1752640240331,-460.0,0.00021917,2]
[372424607,1752640240342,-151.0,0.00021917,2]
[372424609,1752640240354,-151.0,0.00021917,2]
[372424611,1752640240364,-151.0,0.00021917,2]
[372424613,1752640240373,-151.0,0.00021917,2]
[372424615,1752640240383,-151.0,0.00021917,2]
[372424617,1752640240392,-270.62328876,0.00021917,2]
[372424619,1752640240402,-151.0,0.00021917,2]
[372424621,1752640240411,-151.0,0.00021917,2]
[372424623,1752640240420,-151.0,0.00021917,2]
[372424625,1752640240430,-237.754216,0.00021917,2]
[372424627,1752640240440,-497.71,0.00021917,2]
[372424629,1752640240449,-460.0,0.00021917,2]
[372424631,1752640240459,-460.0,0.00021917,2]
[372424633,1752640240468,-460.0,0.00021917,2]
[372424635,1752640240478,-500.0,0.00021917,2]
[372424637,1752640240487,-460.0,0.00021917,2]
[372424639,1752640240497,-460.0,0.00021917,2]
[372424641,1752640240506,-460.0,0.00021917,2]
[372424643,1752640240515,-746.45,0.00021917,2]
[372424645,1752640240524,-460.0,0.00021917,2]
[372424647,1752640240535,-460.0,0.00021917,2]
[372424650,1752640240546,-460.0,0.00021917,2]
[372424652,1752640240555,-460.0,0.00021917,2]
[372424654,1752640240565,-460.0,0.00021917,2]
[372424656,1752640240574,-460.0,0.00021917,2]
[372424657,1752640240584,-1293.08,0.00021917,2]
[372424659,1752640240594,-460.0,0.00021917,2]
[372424661,1752640240603,-460.0,0.00021917,2]
[372424664,1752640240614,-1219.21,0.00021917,2]
[372424666,1752640240624,-460.0,0.00021917,2]
[372424668,1752640240634,-794.88,0.00021917,2]
[372424670,1752640240644,-460.0,0.00021917,2]
[372424672,1752640240654,-460.0,0.00021917,2]
[372424674,1752640240663,-460.0,0.00021917,2]
[372424676,1752640240672,-460.0,0.00021917,2]
[372424678,1752640240682,-460.0,0.00021917,2]
[372424680,1752640240691,-876.2,0.00021917,2]
[372424682,1752640240700,-760.29004191,0.00021917,2]
[372424684,1752640240710,-1422.42,0.00021917,2]
[372424686,1752640240719,-460.0,0.00021917,2]
[372424688,1752640240729,-460.0,0.00021917,2]
[372424690,1752640240738,-460.0,0.00021917,2]
[372424692,1752640240747,-461.89769566,0.00021917,2]
[372424694,1752640240757,-542.66064913,0.00021917,2]
[372424696,1752640240767,-460.0,0.00021917,2]
[372424698,1752640240776,-302.54774229,0.00021917,2]
[372424700,1752640240789,-896.96,0.00021917,2]
[372424702,1752640240800,-460.0,0.00021917,2]
[372424704,1752640240810,-460.0,0.00021917,2]
[372424706,1752640240819,-552.27,0.00021917,2]
[372424708,1752640240829,-460.0,0.00021917,2]
[372424710,1752640240838,-460.0,0.00021917,2]
[372424712,1752640240848,-460.0,0.00021917,2]
[372424714,1752640240857,-460.0,0.00021917,2]
[372424716,1752640240867,-460.0,0.00021917,2]
[372424718,1752640240877,-461.5675347,0.00021917,2]
[372424720,1752640240887,-679.48,0.00021917,2]
[372424722,1752640240896,-1181.67,0.00021917,2]
[372424724,1752640240906,-460.0,0.00021917,2]
[372424726,1752640240915,-460.75993397,0.00021917,7]
[372424728,1752640240924,-460.0,0.00021917,2]
[372424730,1752640240933,-1132.15,0.00021917,2]
[372424732,1752640240943,-460.0,0.00021917,2]
[372424734,1752640240952,-460.0,0.00021917,2]
[372424736,1752640240962,-1020.4,0.00021917,2]
[372424738,1752640240971,-533.41,0.00021917,2]
[372424740,1752640240981,-461.83715601,0.00021917,2]
[372424742,1752640240992,-460.0,0.00021917,2]
[372424744,1752640241001,-151.0,0.00021917,2]
[372424746,1752640241011,-151.0,0.00021917,2]
[372424748,1752640241020,-151.0,0.00021917,2]
[372424750,1752640241032,-650.38,0.00021917,2]
[372424752,1752640241041,-650.38,0.00021917,2]
[372424754,1752640241051,-650.38,0.00021917,2]
[372424756,1752640241060,-460.0,0.00021917,2]
[372424758,1752640241070,-650.38,0.00021917,2]
[372424760,1752640241081,-650.38,0.00021917,2]
[372424762,1752640241095,-460.0,0.00021917,2]
[372424764,1752640241104,-650.38,0.00021917,2]
[372424767,1752640241114,-650.38,0.00021917,2]
[372424769,1752640241124,-650.38,0.00021917,2]
[372424771,1752640241134,-855.23,0.00021917,2]
[372424773,1752640241143,-650.38,0.00021917,2]
[372424775,1752640241154,-460.0,0.00021917,2]
[372424777,1752640241164,-650.38,0.00021917,2]
[372424779,1752640241175,-650.38,0.00021917,2]
[372424781,1752640241185,-650.38,0.00021917,2]
[372424783,1752640241196,-533.47157827,0.00021917,2]
[372424785,1752640241206,-460.0,0.00021917,2]
[372424788,1752640241216,-1065.83,0.00021917,2]
[372424790,1752640241226,-282.56929233,0.00021917,2]
[372424792,1752640241236,-645.62,0.00021917,2]
[372424794,1752640241246,-448.95354858,0.00021917,2]
[372424796,1752640241257,-460.0,0.00021917,2]
[372424798,1752640241267,-942.06,0.00021917,2]
[372424800,1752640241277,-460.0,0.00021917,2]
[372424802,1752640241287,-499.6,0.00021917,2]
[372424804,1752640241297,-460.0,0.00021917,2]
[372424806,1752640241307,-460.0,0.00021917,2]
[372424808,1752640241317,-460.0,0.00021917,2]
[372424810,1752640241327,-460.0,0.00021917,2]
[372424812,1752640241336,-787.07,0.00021917,2]
[372424814,1752640241346,-460.0,0.00021917,2]
[372424816,1752640241356,-460.0,0.00021917,2]
[372424818,1752640241366,-460.0,0.00021917,2]
[372424820,1752640241376,-151.0,0.00021917,2]
[372424822,1752640241386,-286.575902,0.00021917,2]
[372424824,1752640241395,-460.0,0.00021917,2]
[372424827,1752640241407,-487.39760669,0.00021917,2]
[372424829,1752640241418,-460.0,0.00021917,2]
[372424831,1752640241428,-460.0,0.00021917,2]
[372424833,1752640241438,-498.57,0.00021917,2]
[372424835,1752640241448,-460.0,0.00021917,2]
[372424837,1752640241458,-460.0,0.00021917,2]
[372424839,1752640241468,-460.0,0.00021917,2]
[372424841,1752640241477,-684.19,0.00021917,2]
[372424843,1752640241487,-461.34255861,0.00021917,2]
[372424845,1752640241497,-481.68365117,0.00021917,2]
[372424847,1752640241507,-151.0,0.00021917,2]
[372424849,1752640241516,-462.36796185,0.00021917,2]
[372424851,1752640241526,-151.0,0.00021917,2]
[372424853,1752640241537,-153.232951,0.00021917,2]
[372424855,1752640241547,-460.0,0.00021917,2]
[372424857,1752640241557,-460.0,0.00021917,2]
[372424860,1752640241567,-460.0,0.00021917,2]
[372424861,1752640241576,-924.1,0.00021917,2]
[372424862,1752640241586,-460.0,0.00021917,2]
[372424863,1752640241596,-460.0,0.00021917,2]
[372424864,1752640241615,-492.99,0.00021917,2]
[372424865,1752640241624,-501.65,0.00021917,2]
[372424866,1752640241634,-460.0,0.00021917,2]
[372424867,1752640241644,-460.0,0.00021917,2]
[372424868,1752640241653,-460.0,0.00021917,2]
[372424870,1752640241663,-460.0,0.00021917,2]
[372424872,1752640241673,-574.77,0.00021917,2]
[372424874,1752640241682,-863.36,0.00021917,2]
[372424876,1752640241692,-1022.59,0.00021917,2]
[372424878,1752640241702,-768.23,0.00021917,2]
[372424880,1752640241711,-647.37,0.00021917,2]
[372424882,1752640241721,-460.0,0.00021917,2]
[372424884,1752640241731,-460.0,0.00021917,2]
[372424886,1752640241741,-460.0,0.00021917,2]
[372424888,1752640241750,-538.43,0.00021917,2]
[372424890,1752640241760,-203.969566,0.00021917,2]
[372424892,1752640241770,-460.0,0.00021917,2]
[372424894,1752640241779,-449.76738851,0.00021917,2]
[372424896,1752640241790,-460.0,0.00021917,2]
[372424898,1752640241799,-460.0,0.00021917,2]
[372424901,1752640241809,-460.0,0.00021917,2]
[372424903,1752640241818,-477.02,0.00021917,2]
[372424905,1752640241828,-1853.93,0.00021917,2]
[372424907,1752640241838,-460.0,0.00021917,2]
[372424909,1752640241847,-281.0935359,0.00021917,2]
[372424911,1752640241857,-886.07,0.00021917,2]
[372424913,1752640241866,-460.0,0.00021917,2]
[372424915,1752640241876,-460.0,0.00021917,2]
[372424917,1752640241886,-460.0,0.00021917,2]
[372424919,1752640241896,-460.0,0.00021917,2]
[372424921,1752640241906,-460.0,0.00021917,2]
[372424923,1752640241916,-460.0,0.00021917,2]
[372424925,1752640241925,-488.08,0.00021917,2]
[372424927,1752640241936,-1499.11,0.00021917,2]
[372424929,1752640241945,-681.5,0.00021917,2]
[372424931,1752640241955,-460.0,0.00021917,2]
[372424933,1752640241964,-460.0,0.00021917,2]
[372424935,1752640241974,-461.47165208,0.00021917,2]
[372424937,1752640241984,-460.0,0.00021917,2]
[372424939,1752640241997,-460.0,0.00021917,2]
[372424941,1752640242007,-460.0,0.00021917,2]
[372424943,1752640242016,-460.0,0.00021917,2]
[372424945,1752640242025,-460.0,0.00021917,2]
[372424947,1752640242038,-685.64,0.00021917,2]
[372424949,1752640242047,-460.0,0.00021917,2]
[372424951,1752640242056,-460.0,0.00021917,2]
[372424954,1752640242068,-460.0,0.00021917,2]
[372424956,1752640242078,-460.0,0.00021917,2]
[372424958,1752640242087,-460.0,0.00021917,2]
[372424960,1752640242096,-1584.59,0.00021917,2]
[372424962,1752640242105,-460.0,0.00021917,2]
[372424964,1752640242114,-1233.45,0.00021917,2]
[372424966,1752640242124,-460.0,0.00021917,2]
[372424968,1752640242134,-460.0,0.00021917,2]
[372424970,1752640242144,-460.0,0.00021917,2]
[372424972,1752640242156,-151.0,0.00021917,2]
[372424974,1752640242166,-460.0,0.00021917,2]
[372424976,1752640242176,-1088.44,0.00021917,2]
[372424978,1752640242186,-463.10860935,0.00021917,2]
[372424980,1752640242196,-720.21,0.00021917,2]
[372424982,1752640242205,-460.0,0.00021917,2]
[372424999,1752640242353,-460.0,0.00021917,2]
[372425001,1752640242363,-558.38,0.00021917,2]
[372425003,1752640242373,-460.0,0.00021917,2]
[372425005,1752640242383,-151.0,0.00021917,2]
[372425007,1752640242392,-1022.57,0.00021917,2]
[372425009,1752640242401,-151.0,0.00021917,2]
[372425011,1752640242410,-460.0,0.00021917,2]
[372425013,1752640242420,-460.0,0.00021917,2]
[372425015,1752640242429,-460.0,0.00021917,2]
[372425017,1752640242438,-460.0,0.00021917,2]
[372425019,1752640242447,-460.0,0.00021917,2]
[372425021,1752640242456,-460.0,0.00021917,2]
[372425023,1752640242465,-460.0,0.00021917,2]
[372425025,1752640242475,-574.55724694,0.00021917,2]
[372425027,1752640242484,-461.82183278,0.00021917,2]
[372425029,1752640242493,-460.0,0.00021917,2]
[372425031,1752640242502,-614.48,0.00021917,2]
[372425033,1752640242511,-460.0,0.00021917,2]
[372425035,1752640242520,-465.04302869,0.00021917,2]
[372425037,1752640242529,-658.41,0.00021917,2]
[372425039,1752640242539,-460.0,0.00021917,2]
[372425041,1752640242548,-460.0,0.00021917,2]
[372425042,1752640242557,-806.67,0.00021917,2]
[372425044,1752640242566,-151.0,0.00021917,2]
[372425047,1752640242576,-460.0,0.00021917,2]
[372425049,1752640242585,-492.0,0.00021917,2]
[372425050,1752640242595,-151.0,0.00021917,2]
[372425052,1752640242604,-151.0,0.00021917,2]
[372425054,1752640242613,-460.0,0.00021917,2]
[372425056,1752640242622,-151.0,0.00021917,2]
[372425059,1752640242631,-151.0,0.00021917,2]
[372425060,1752640242640,-151.0,0.00021917,2]
[372425063,1752640242650,-296.800957,0.00021917,2]
[372425064,1752640242659,-460.0,0.00021917,2]
[372425066,1752640242668,-460.0,0.00021917,2]
[372425068,1752640242677,-1906.34,0.00021917,2]
[372425070,1752640242686,-803.65,0.00021917,2]
[372425072,1752640242696,-460.0,0.00021917,2]
[372425074,1752640242705,-460.0,0.00021917,2]
[372425076,1752640242714,-636.81,0.00021917,2]
[372425078,1752640242724,-460.0,0.00021917,2]
[372425080,1752640242734,-460.0,0.00021917,2]
[372425082,1752640242743,-151.0,0.00021917,2]
[372425085,1752640242752,-460.0,0.00021917,2]
[372425087,1752640242761,-151.0,0.00021917,2]
[372425089,1752640242771,-151.0,0.00021917,2]
[372425091,1752640242780,-151.0,0.00021917,2]
[372425093,1752640242790,-995.28,0.00021917,2]
[372425095,1752640242800,-460.0,0.00021917,2]
[372425097,1752640242809,-460.0,0.00021917,2]
[372425099,1752640242818,-460.0,0.00021917,2]
[372425101,1752640242827,-460.0,0.00021917,2]
[372425103,1752640242836,-885.56,0.00021917,2]
[372425105,1752640242846,-460.0,0.00021917,2]
[372425107,1752640242855,-460.0,0.00021917,2]
[372425109,1752640242863,-460.0,0.00021917,2]
[372425111,1752640242873,-460.0,0.00021917,2]
[372425113,1752640242882,-1401.27,0.00021917,2]
[372425115,1752640242891,-1113.01,0.00021917,2]
[372425117,1752640242901,-460.0,0.00021917,2]
[372425119,1752640242910,-554.59,0.00021917,2]
[372425121,1752640242920,-621.14,0.00021917,2]
[372425123,1752640242929,-460.0,0.00021917,2]
[372425125,1752640242939,-460.0,0.00021917,2]
[372425127,1752640242948,-460.0,0.00021917,2]
[372425129,1752640242957,-460.0,0.00021917,2]
[372425131,1752640242967,-460.0,0.00021917,2]
[372425133,1752640242976,-460.0,0.00021917,2]
[372425136,1752640242986,-460.0,0.00021917,2]
[372425138,1752640242999,-460.0,0.00021917,2]
[372425140,1752640243009,-478.96,0.00021917,2]
[372425142,1752640243019,-460.0,0.00021917,2]
[372425144,1752640243028,-1502.0,0.00021917,2]
[372425146,1752640243040,-542.62,0.00021917,2]
[372425148,1752640243049,-460.0,0.00021917,2]
[372425150,1752640243058,-460.98407075,0.00021917,2]
[372425152,1752640243067,-659.73,0.00021917,2]
[372425154,1752640243078,-927.19,0.00021917,2]
[372425156,1752640243088,-460.0,0.00021917,2]
[372425158,1752640243097,-460.0,0.00021917,2]
[372425161,1752640243107,-460.0,0.00021917,2]
[372425162,1752640243115,-460.0,0.00021917,2]
[372425165,1752640243125,-460.0,0.00021917,2]
[372425167,1752640243134,-460.0,0.00021917,2]
[372425168,1752640243143,-460.0,0.00021917,2]
[372425170,1752640243152,-460.0,0.00021917,2]
[372425172,1752640243161,-460.0,0.00021917,2]
[372425174,1752640243170,-460.0,0.00021917,2]
[372425176,1752640243179,-460.0,0.00021917,2]
[372425178,1752640243188,-460.0,0.00021917,2]
[372425180,1752640243198,-460.0,0.00021917,2]
[372425182,1752640243207,-460.0,0.00021917,2]
[372425184,1752640243216,-460.0,0.00021917,2]
[372425186,1752640243226,-460.0,0.00021917,2]
[372425189,1752640243235,-840.22,0.00021917,2]
[372425191,1752640243245,-501.19497873,0.00021917,2]
[372425193,1752640243254,-460.98318091,0.00021917,2]
[372425195,1752640243264,-460.0,0.00021917,2]
[372425196,1752640243273,-1183.48,0.00021917,2]
[372425199,1752640243284,-460.0,0.00021917,2]
[372425200,1752640243293,-1779.16,0.00021917,2]
[372425202,1752640243302,-460.0,0.00021917,2]
[372425204,1752640243311,-461.42462784,0.00021917,2]
[372425206,1752640243321,-151.0,0.00021917,2]
[372425208,1752640243330,-151.0,0.00021917,2]
[372425211,1752640243339,-460.0,0.00021917,2]
[372425213,1752640243349,-301.717814,0.00021917,2]
[372425215,1752640243363,-460.0,0.00021917,2]
[372425217,1752640243373,-460.0,0.00021917,2]
[372425219,1752640243383,-460.0,0.00021917,2]
[372425221,1752640243392,-693.88,0.00021917,2]
[372425223,1752640243402,-156.044223,0.00021917,2]
[372425225,1752640243411,-460.0,0.00021917,2]
[372425227,1752640243421,-460.0,0.00021917,2]
[372425229,1752640243431,-582.5,0.00021917,2]
[372425231,1752640243440,-514.22,0.00021917,2]
[372425233,1752640243449,-460.0,0.00021917,2]
[372425235,1752640243459,-151.0,0.00021917,2]
[372425237,1752640243468,-460.0,0.00021917,2]
[372425239,1752640243478,-151.0,0.00021917,2]
[372425241,1752640243487,-151.0,0.00021917,2]
[372425243,1752640243496,-500.0,0.00021917,2]
[372425245,1752640243506,-151.0,0.00021917,2]
[372425247,1752640243515,-216.135749,0.00021917,2]
[372425250,1752640243525,-680.81,0.00021917,2]
[372425252,1752640243534,-460.0,0.00021917,2]
[372425255,1752640243544,-1002.22,0.00021917,2]
[372425258,1752640243553,-460.0,0.00021917,2]
[372425260,1752640243563,-151.0,0.00021917,2]
[372425262,1752640243572,-566.22,0.00021917,2]
[372425264,1752640243581,-151.0,0.00021917,2]
[372425266,1752640243590,-460.0,0.00021917,2]
[372425268,1752640243599,-151.0,0.00021917,2]
[372425270,1752640243609,-460.0,0.00021917,2]
[372425272,1752640243619,-151.0,0.00021917,2]
[372425273,1752640243628,-151.0,0.00021917,2]
[372425276,1752640243637,-151.0,0.00021917,2]
[372425278,1752640243647,-151.0,0.00021917,2]
[372425280,1752640243657,-151.0,0.00021917,2]
[372425282,1752640243667,-151.0,0.00021917,2]
[372425283,1752640243676,-903.29,0.00021917,2]
[372425286,1752640243686,-564.04,0.00021917,2]
[372425288,1752640243695,-151.0,0.00021917,2]
[372425290,1752640243705,-151.0,0.00021917,2]
[372425291,1752640243714,-460.0,0.00021917,2]
[372425294,1752640243723,-460.0,0.00021917,2]
[372425296,1752640243733,-655.39,0.00021917,2]
[372425298,1752640243742,-460.0,0.00021917,2]
[372425300,1752640243752,-1383.4,0.00021917,2]
[372425302,1752640243762,-460.0,0.00021917,2]
[372425303,1752640243771,-461.47181183,0.00021917,2]
[372425304,1752640243781,-383.43965968,0.00021917,2]
[372425305,1752640243791,-460.0,0.00021917,2]
[372425306,1752640243800,-460.0,0.00021917,2]
[372425307,1752640243810,-460.0,0.00021917,2]
[372425308,1752640243819,-460.0,0.00021917,2]
[372425309,1752640243829,-462.69461154,0.00021917,2]
[372425310,1752640243838,-670.34,0.00021917,2]
[372425311,1752640243847,-460.0,0.00021917,2]
[372425313,1752640243857,-460.0,0.00021917,2]
[372425315,1752640243866,-460.0,0.00021917,2]
[372425317,1752640243875,-460.0,0.00021917,2]
[372425319,1752640243885,-460.0,0.00021917,2]
[372425321,1752640243895,-460.0,0.00021917,2]
[372425323,1752640243904,-460.0,0.00021917,2]
[372425325,1752640243913,-151.0,0.00021917,2]
[372425327,1752640243923,-460.0,0.00021917,2]
[372425329,1752640243933,-2484.64,0.00021917,2]
[372425331,1752640243942,-151.0,0.00021917,2]
[372425333,1752640243953,-151.0,0.00021917,2]
[372425335,1752640243962,-460.0,0.00021917,2]
[372425337,1752640243972,-151.0,0.00021917,2]
[372425339,1752640243981,-157.62108,0.00021917,2]
[372425341,1752640243998,-151.0,0.00021917,2]
[372425343,1752640244009,-460.0,0.00021917,2]
[372425345,1752640244019,-1352.04,0.00021917,2]
[372425347,1752640244028,-460.0,0.00021917,2]
[372425349,1752640244039,-460.0,0.00021917,2]
[372425351,1752640244048,-460.0,0.00021917,2]
[372425353,1752640244057,-460.0,0.00021917,2]
[372425355,1752640244071,-460.0,0.00021917,2]
[372425357,1752640244081,-508.99,0.00021917,2]
[372425359,1752640244092,-500.0,0.00021917,2]
[372425361,1752640244101,-500.0,0.00021917,2]
[372425363,1752640244111,-460.0,0.00021917,2]
[372425365,1752640244122,-500.0,0.00021917,2]
[372425367,1752640244132,-500.0,0.00021917,2]
[372425369,1752640244142,-373.79350706,0.00021917,2]
[372425371,1752640244151,-500.0,0.00021917,2]
[372425373,1752640244160,-500.0,0.00021917,2]
[372425375,1752640244169,-500.0,0.00021917,2]
[372425377,1752640244179,-469.05,0.00021917,2]
[372425379,1752640244188,-460.0,0.00021917,2]
[372425381,1752640244197,-460.0,0.00021917,2]
[372425383,1752640244206,-460.0,0.00021917,2]
[372425385,1752640244216,-460.0,0.00021917,2]
[372425387,1752640244225,-460.0,0.00021917,2]
[372425389,1752640244235,-504.68,0.00021917,2]
[372425391,1752640244244,-462.44747417,0.00021917,2]
[372425393,1752640244253,-862.63,0.00021917,2]
[372425395,1752640244262,-1101.67,0.00021917,2]
[372425397,1752640244272,-628.94,0.00021917,2]
[372425399,1752640244281,-460.0,0.00021917,2]
[372425401,1752640244291,-460.0,0.00021917,2]
[372425403,1752640244300,-460.0,0.00021917,2]
[372425405,1752640244309,-460.0,0.00021917,2]
[372425407,1752640244319,-460.0,0.00021917,2]
[372425409,1752640244328,-3533.81,0.00021917,2]
[372425411,1752640244337,-460.0,0.00021917,2]
[372425413,1752640244346,-460.0,0.00021917,2]
[372425416,1752640244357,-460.0,0.00021917,2]
[372425418,1752640244366,-294.191834,0.00021917,2]
[372425420,1752640244376,-553.48,0.00021917,2]
[372425422,1752640244385,-460.0,0.00021917,2]
[372425424,1752640244394,-460.0,0.00021917,2]
[372425426,1752640244404,-460.0,0.00021917,2]
[372425427,1752640244413,-460.0,0.00021917,2]
[372425429,1752640244422,-460.0,0.00021917,2]
[372425431,1752640244441,-460.0,0.00021917,2]
[372425434,1752640244456,-460.0,0.00021917,2]
[372425435,1752640244466,-460.0,0.00021917,2]
[372425438,1752640244475,-460.0,0.00021917,2]
[372425440,1752640244485,-2551.64,0.00021917,2]
[372425442,1752640244494,-460.0,0.00021917,2]
[372425444,1752640244503,-923.9,0.00021917,2]
[372425445,1752640244513,-1445.03,0.00021917,2]
[372425447,1752640244522,-500.23658778,0.00021917,2]
[372425449,1752640244532,-460.0,0.00021917,2]
[372425451,1752640244542,-460.0,0.00021917,2]
[372425454,1752640244552,-1081.35,0.00021917,2]
[372425456,1752640244561,-1170.6,0.00021917,2]
[372425457,1752640244570,-151.0,0.00021917,2]
[372425460,1752640244580,-151.0,0.00021917,2]
[372425461,1752640244590,-462.02335216,0.00021917,2]
[372425464,1752640244600,-151.0,0.00021917,2]
[372425466,1752640244610,-151.0,0.00021917,2]
[372425468,1752640244620,-151.0,0.00021917,2]
[372425470,1752640244630,-151.0,0.00021917,2]
[372425472,1752640244640,-151.0,0.00021917,2]
[372425474,1752640244649,-151.0,0.00021917,2]
[372425475,1752640244658,-460.0,0.00021917,2]
[372425477,1752640244668,-460.0,0.00021917,2]
[372425480,1752640244677,-151.0,0.00021917,2]
[372425481,1752640244686,-151.0,0.00021917,2]
[372425484,1752640244696,-460.0,0.00021917,2]
[372425485,1752640244705,-151.0,0.00021917,2]
[372425488,1752640244716,-460.0,0.00021917,2]
[372425490,1752640244726,-151.0,0.00021917,2]
[372425491,1752640244735,-460.0,0.00021917,2]
[372425494,1752640244744,-151.0,0.00021917,2]
[372425495,1752640244754,-151.0,0.00021917,2]
[372425498,1752640244764,-151.0,0.00021917,2]
[372425499,1752640244773,-151.0,0.00021917,2]
[372425502,1752640244783,-460.0,0.00021917,2]
[372425504,1752640244793,-293.187796,0.00021917,2]
[372425505,1752640244802,-182.576258,0.00021917,2]
[372425508,1752640244812,-463.50902069,0.00021917,2]
[372425510,1752640244821,-2800.98,0.00021917,2]
[372425512,1752640244831,-460.0,0.00021917,2]
[372425514,1752640244840,-460.0,0.00021917,2]
[372425516,1752640244850,-461.18,0.00021917,2]
[372425518,1752640244860,-460.0,0.00021917,2]
[372425519,1752640244870,-614.13,0.00021917,2]
[372425522,1752640244880,-583.4,0.00021917,2]
[372425524,1752640244889,-460.0,0.00021917,2]
[372425526,1752640244899,-471.89,0.00021917,2]
[372425528,1752640244908,-460.0,0.00021917,2]
[372425529,1752640244918,-151.0,0.00021917,2]
[372425531,1752640244927,-772.47,0.00021917,2]
[372425534,1752640244937,-460.0,0.00021917,2]
[372425536,1752640244946,-151.0,0.00021917,2]
[372425538,1752640244956,-239.679879,0.00021917,2]
[372425540,1752640244965,-460.0,0.00021917,2]
[372425542,1752640244974,-460.0,0.00021917,2]
[372425544,1752640244983,-800.73,0.00021917,2]
[372425546,1752640244992,-1817.87,0.00021917,2]
[372425548,1752640245002,-687.21,0.00021917,2]
[372425550,1752640245015,-460.0,0.00021917,2]
[372425552,1752640245025,-460.0,0.00021917,2]
[372425554,1752640245035,-460.0,0.00021917,2]
[372425556,1752640245045,-922.48,0.00021917,2]
[372425558,1752640245055,-528.41,0.00021917,2]
[372425560,1752640245064,-221.098143,0.00021917,2]
[372425561,1752640245073,-221.098143,0.00021917,2]